bitfinex/quotes_SOLUSD_20241010
["timestamp","ask_amount","ask_price","bid_price","bid_amount"]
[1728569429710,23.776884,137.81,137.7,40.3263]
[1728569429920,7.2595,137.75,137.7,40.3263]
[1728569430123,23.776884,137.81,137.7,40.3263]
[1728569430329,7.261,137.73,137.68,7.2627]
[1728569430502,7.2618,137.71,137.67,32.0206]
[1728569430702,23.776884,137.75,137.68,1.45224321]
[1728569430940,18.1485,137.76,137.67,32.0206]
[1728569430941,7.2612,137.72,137.67,32.0206]
[1728569431222,7.2603,137.74,137.68,1.45226256]
[1728569431436,7.2603,137.74,137.69,25.4186]
[1728569431604,7.2596,137.75,137.7,1.45199465]
[1728569431806,6.0169,137.81,137.72,0.12549]
[1728569432025,7.2582,137.78,137.72,1.5771181]
[1728569432229,7.2582,137.78,137.73,7.2604]
[1728569432726,7.2574,137.79,137.75,7.2594]
[1728569434308,7.2576,137.79,137.74,1.45174519]
[1728569434504,7.2576,137.79,137.75,7.2595]
[1728569434827,0.6016,137.82,137.79,7.2574]
[1728569435029,0.6016,137.82,137.81,7.2563]
[1728569435207,0.6016,137.82,137.81,7.38179]
[1728569435621,0.6016,137.82,137.81,7.50728]
[1728569435822,0.6016,137.82,137.81,51.284164]
[1728569436019,0.6016,137.82,137.81,27.50728]
[1728569436525,0.6016,137.82,137.81,27.38179]
[1728569436823,0.1016,137.82,137.8,7.2568]
[1728569437435,0.1016,137.82,137.8,20.12549]
[1728569437634,0.1016,137.82,137.8,0.12549]
[1728569437814,0.1016,137.82,137.79,25.3995]
[1728569438023,0.1016,137.82,137.8,8.70762802]
[1728569438236,0.1016,137.82,137.8,1.45092802]
[1728569438544,0.1016,137.82,137.76,24.7318]
[1728569439109,0.1016,137.82,137.76,25.4059]
[1728569439436,7.2564,137.81,137.77,1.45128709]
[1728569439614,7.2564,137.81,137.76,25.4062]
[1728569439819,7.3575,137.82,137.77,8.70948447]
[1728569440013,7.3575,137.82,137.77,7.2582]
[1728569440406,0.1016,137.82,137.79,7.2574]
[1728569440615,0.1016,137.82,137.8,1.45107773]
[1728569441226,0.1016,137.82,137.81,7.2563]
[1728569441455,0.1016,137.82,137.81,7.38179]
[1728569442841,0.1016,137.82,137.8,18.1415]
[1728569443353,0.1016,137.82,137.77,18.1453]
[1728569443841,0.1016,137.82,137.79,7.257]
[1728569444014,0.1016,137.82,137.8,1.45102026]
[1728569444218,0.1016,137.82,137.8,7.2567]
[1728569444713,7.2567,137.81,137.76,25.406]
[1728569445624,7.257,137.8,137.77,1.45125698]
[1728569445822,7.2565,137.81,137.77,1.45125698]
[1728569446137,7.2578,137.79,137.75,7.2593]
[1728569446344,0.1016,137.82,137.73,18.1505]
[1728569446522,7.2581,137.78,137.74,1.45161577]
[1728569446714,7.2584,137.77,137.73,25.4107]
[1728569446918,7.259,137.76,137.73,18.1505]
[1728569447111,18.2417,137.82,137.7,15.9497]
[1728569447112,23.776884,137.81,137.74,1.45167708]
[1728569447429,7.2594,137.76,137.71,7.2615]
[1728569447815,7.2594,137.76,137.72,7.2609]
[1728569448223,7.2585,137.77,137.73,7.2605]
[1728569448422,0.1016,137.82,137.73,0.12549]
[1728569448724,7.2574,137.79,137.75,7.38489]
[1728569448939,7.2574,137.79,137.76,1.45145392]
[1728569449825,7.258,137.78,137.75,1.45160388]
[1728569450032,7.2584,137.77,137.73,25.53709]
[1728569450214,7.2581,137.78,137.74,7.2599]
[1728569450522,18.2418,137.82,137.73,18.27669]
[1728569450523,0.1016,137.82,137.77,18.1458]
[1728569450716,0.1016,137.82,137.78,1.45135952]
[1728569450917,0.1016,137.82,137.75,0.12549]
[1728569451136,0.1016,137.82,137.79,7.257]
[1728569451342,0.1016,137.82,137.78,0.12549]
[1728569451535,0.1016,137.82,137.79,7.38269]
[1728569452536,7.2564,137.81,137.78,0.12549]
[1728569452753,0.1016,137.82,137.74,18.149]
[1728569453055,18.2423,137.82,137.75,1.45153974]
[1728569453527,23.776884,137.81,137.71,38.1529]
[1728569453725,7.2588,137.77,137.73,7.2601]
[1728569454238,23.776884,137.79,137.71,18.1529]
[1728569454639,7.2593,137.76,137.72,7.261]
[1728569454823,7.2597,137.75,137.71,25.4142]
[1728569455726,7.2597,137.75,137.72,0.12549]
[1728569456127,7.2597,137.75,137.71,25.4142]
[1728569456460,7.2596,137.75,137.71,25.4143]
[1728569456745,7.2596,137.75,137.72,1.45185796]
[1728569457124,24.323,137.8,137.72,1.45185796]
[1728569457326,24.323,137.8,137.73,7.38559]
[1728569457551,7.2579,137.78,137.74,1.45165714]
[1728569457727,6.1802,137.8,137.74,1.45165714]
[1728569457932,7.258,137.78,137.74,8.71165714]
[1728569458124,7.258,137.78,137.75,0.12549]
[1728569458742,7.2575,137.79,137.75,7.2594]
[1728569459124,7.2575,137.79,137.74,0.25098]
[1728569459125,7.2579,137.78,137.74,7.51068]
[1728569459321,7.2588,137.77,137.74,0.12549]
[1728569460324,23.776884,137.79,137.71,20.12549]
[1728569460526,7.2591,137.76,137.72,8.71273348]
[1728569460747,7.2604,137.74,137.7,41.366]
[1728569460943,7.2594,137.76,137.71,7.2612]
[1728569461150,7.2594,137.76,137.7,34.1041]
[1728569461151,7.2594,137.76,137.72,7.261]
[1728569461528,7.2586,137.77,137.73,7.2605]
[1728569461742,18.1442,137.79,137.71,18.1536]
[1728569462046,7.2596,137.75,137.71,25.4151]
[1728569462242,23.776884,137.8,137.69,7.2625]
[1728569462243,7.2605,137.73,137.69,7.2625]
[1728569462553,7.2597,137.75,137.71,7.2613]
[1728569462727,7.2597,137.75,137.72,1.45184205]
[1728569463125,0.1016,137.82,137.73,1.45184745]
[1728569463323,7.2576,137.79,137.75,7.2591]
[1728569463518,7.257,137.8,137.76,8.71044333]
[1728569463738,7.257,137.8,137.76,7.2589]
[1728569465146,7.2574,137.79,137.75,7.51028]
[1728569465929,7.2572,137.8,137.76,8.71021385]
[1728569466336,7.2574,137.79,137.75,7.51028]
[1728569467250,7.2579,137.78,137.75,0.12549]
[1728569467631,0.1016,137.82,137.76,0.12549]
[1728569467835,0.1016,137.82,137.81,7.2563]
[1728569468053,0.1016,137.82,137.81,7.50728]
[1728569468231,0.1016,137.82,137.81,28.95793841]
[1728569469048,0.1016,137.82,137.81,68.54052241]
[1728569470137,0.8130491,137.87,137.86,7.2537]
[1728569470342,0.8130491,137.87,137.86,52.73173318]
[1728569470734,0.8130491,137.87,137.86,58.85963318]
[1728569471356,0.8130491,137.87,137.86,57.409464]
[1728569472369,0.8130491,137.87,137.86,143.707264]
[1728569472370,0.6876491,137.87,137.86,143.707264]
[1728569472731,7.2474,137.99,137.94,7.2494]
[1728569472932,7.2464,138.0,137.95,8.69825868]
[1728569473656,0.8130491,138.01,137.96,7.37379]
[1728569473657,8.0589491,138.01,137.96,7.37379]
[1728569473860,0.8130491,138.01,137.94,18.1227]
[1728569474069,7.2488,137.96,137.92,0.12549]
[1728569474234,7.249,137.95,137.91,18.1274]
[1728569474433,7.249,137.95,137.92,0.12549]
[1728569474937,18.1171,138.0,137.92,1.44970808]
[1728569475244,7.2499,137.94,137.89,7.252]
[1728569475456,7.248,137.97,137.9,19.57794397]
[1728569476070,7.2474,137.98,137.93,7.2499]
[1728569476279,0.8130491,138.01,137.95,0.12549]
[1728569476944,7.2463,138.0,137.95,7.2489]
[1728569477146,0.8130491,138.01,137.97,0.25098]
[1728569477458,0.8130491,138.01,138.0,51.274164]
[1728569477771,0.8130491,138.01,138.0,52.72256489]
[1728569478158,0.8130491,138.01,137.98,18.1177]
[1728569478354,0.8130491,138.01,137.98,0.12549]
[1728569478755,0.8130491,138.01,137.98,7.49828]
[1728569479367,0.8130491,138.01,137.99,1.44894564]
[1728569479666,0.8130491,138.01,138.0,0.25098]
[1728569479967,0.8130491,138.01,137.99,7.2467]
[1728569480274,0.8130491,138.01,137.98,7.2473]
[1728569480447,0.8130491,138.01,137.99,0.12549]
[1728569481045,0.8130491,138.01,137.94,21.7021]
[1728569481364,8.0589491,138.01,137.97,7.2478]
[1728569481545,8.0589491,138.01,137.94,18.1233]
[1728569481546,0.8130491,138.01,137.94,18.1233]
[1728569481746,7.2485,137.96,137.91,25.3778]
[1728569482461,7.2485,137.96,137.91,18.1273]
[1728569482662,7.2485,137.96,137.92,7.2504]
[1728569483058,7.248,137.97,137.91,18.1273]
[1728569483260,7.248,137.97,137.92,1.44951359]
[1728569483462,0.8130491,138.01,137.91,18.1273]
[1728569483463,7.2475,137.98,137.93,7.2495]
[1728569483679,7.247,137.99,137.94,8.69882832]
[1728569484478,7.247,137.99,137.95,0.12549]
[1728569484656,7.2483,137.97,137.91,25.3779]
[1728569484855,7.2474,137.98,137.93,7.37539]
[1728569485187,7.2474,137.98,137.94,0.12549]
[1728569485980,7.2471,137.99,137.94,7.37449]
[1728569486189,0.8130491,138.01,137.95,1.44939498]
[1728569486371,23.776884,138.0,137.9,22.3484]
[1728569487183,7.2491,137.95,137.91,7.2509]
[1728569487369,41.893484,138.0,137.91,7.2509]
[1728569487563,7.2485,137.96,137.92,1.44968732]
[1728569487882,41.893484,138.0,137.91,7.2509]
[1728569488378,18.1191,137.98,137.89,7.2517]
[1728569488688,7.2502,137.93,137.88,7.2522]
[1728569488856,7.2502,137.93,137.89,7.252]
[1728569489456,7.249,137.95,137.89,18.1296]
[1728569489681,18.1191,137.98,137.89,18.1296]
[1728569489682,18.1191,137.98,137.92,0.12549]
[1728569489884,32.97323498,138.0,137.95,7.2489]
[1728569490180,8.0588491,138.01,137.97,7.37329]
[1728569490382,7.2464,138.0,137.97,0.12549]
[1728569490790,0.8130491,138.01,137.98,7.2473]
[1728569490972,0.8130491,138.01,137.97,0.12549]
[1728569491166,0.8130491,138.01,137.97,7.37299]
[1728569491363,8.0590491,138.01,137.97,0.12549]
[1728569491569,7.2464,138.0,137.96,7.37379]
[1728569491984,0.8130491,138.01,137.97,7.37289]
[1728569492158,0.8130491,138.01,137.98,7.37269]
[1728569492575,0.8130491,138.01,137.99,7.2467]
[1728569492785,0.8130491,138.01,138.0,0.12549]
[1728569493487,0.8130491,138.01,138.0,8.82063576]
[1728569493669,0.8130491,138.01,138.0,8.94612576]
[1728569493871,0.8130491,138.01,138.0,31.274164]
[1728569498383,0.8130491,138.01,138.0,52.72261829]
[1728569498762,7.2406,138.11,138.07,0.25098]
[1728569498968,7.2406,138.11,138.07,7.2426]
[1728569499272,7.2406,138.11,138.08,1.44807376]
[1728569499488,7.2412,138.1,138.06,0.12549]
[1728569499686,7.2412,138.1,138.03,20.0]
[1728569499687,7.94427188,138.12,138.03,20.0]
[1728569499883,7.2425,138.08,138.01,20.0]
[1728569500073,7.94427188,138.12,138.02,41.889484]
[1728569500275,18.102,138.11,138.03,20.0]
[1728569500575,7.2422,138.08,138.04,7.2442]
[1728569500966,7.242,138.09,138.05,0.12549]
[1728569501386,1.44807188,138.1,138.03,20.0]
[1728569501625,7.2437,138.05,138.01,7.2458]
[1728569501773,1.44807188,138.11,138.02,1.44866548]
[1728569501976,1.44807188,138.11,138.03,7.2444]
[1728569502182,7.2422,138.08,138.04,1.44839161]
[1728569502583,7.2422,138.08,138.03,7.2444]
[1728569502788,7.2427,138.07,138.04,1.57390827]
[1728569503089,7.2438,138.05,138.01,25.3596]
[1728569503793,18.1059,138.08,137.98,24.4043]
[1728569503991,7.2451,138.03,137.99,7.2465]
[1728569504289,1.44807188,138.02,137.95,18.122]
[1728569504492,7.2477,137.98,137.94,7.2494]
[1728569504680,7.2474,137.98,137.94,25.3727]
[1728569504996,6.7474,137.98,137.94,25.3727]
[1728569505192,7.2474,137.98,137.94,25.3727]
[1728569505569,7.2474,137.98,137.95,0.25098]
[1728569506181,7.2475,137.98,137.95,1.44936718]
[1728569506382,7.2475,137.98,137.93,7.2496]
[1728569506780,23.776884,138.01,137.92,7.2505]
[1728569506990,19.56177188,138.02,137.93,1.44949181]
[1728569506991,7.2486,137.96,137.93,1.44949181]
[1728569507697,7.249,137.95,137.93,1.44949181]
[1728569508008,7.249,137.95,137.91,18.1268]
[1728569508009,41.895984,137.98,137.88,18.1313]
[1728569508178,7.2502,137.93,137.88,18.1313]
[1728569508582,17.93107188,137.97,137.88,18.1313]
[1728569508786,23.902374,137.95,137.85,18.1355]
[1728569508989,19.57257188,137.94,137.85,18.1355]
[1728569509194,7.2516,137.91,137.85,25.3893]
[1728569509393,7.2511,137.91,137.86,7.2533]
[1728569509590,19.57257188,137.94,137.85,18.1355]
[1728569509792,7.2521,137.89,137.85,25.3896]
[1728569510075,7.2521,137.89,137.85,18.1355]
[1728569510275,7.2521,137.89,137.85,25.3895]
[1728569510571,19.57257188,137.94,137.86,8.7036463]
[1728569510776,19.57257188,137.94,137.86,7.2533]
[1728569511301,1.44807188,137.94,137.88,7.2525]
[1728569511479,7.2507,137.92,137.88,7.2525]
[1728569511681,7.2507,137.92,137.87,25.3853]
[1728569512188,7.2496,137.94,137.89,7.2518]
[1728569512505,1.44807188,137.96,137.88,7.37799]
[1728569512698,7.2514,137.91,137.87,18.1323]
[1728569512879,7.2514,137.91,137.86,7.37909]
[1728569512880,1.44807188,137.94,137.86,7.37909]
[1728569513197,1.44807188,137.94,137.85,27.2542]
[1728569513198,23.776884,137.93,137.85,27.2542]
[1728569513411,7.2517,137.9,137.86,1.45029302]
[1728569513574,7.2517,137.9,137.85,27.2542]
[1728569514077,7.2522,137.89,137.85,7.2542]
[1728569514488,7.2522,137.89,137.86,0.12549]
[1728569514690,7.2527,137.88,137.84,25.3908]
[1728569514901,7.2522,137.89,137.85,1.45047878]
[1728569515283,7.2522,137.89,137.85,8.70447878]
[1728569515595,7.2522,137.89,137.85,7.254]
[1728569516207,7.52007188,137.92,137.86,0.12549]
[1728569516401,7.2517,137.9,137.86,8.82956523]
[1728569516629,7.2511,137.91,137.86,8.82956523]
[1728569517000,6.072,137.92,137.83,7.2548]
[1728569517001,7.2527,137.88,137.83,7.2548]
[1728569517313,7.2549,137.84,137.78,18.1441]
[1728569517491,7.2557,137.83,137.78,25.4019]
[1728569517693,7.2553,137.83,137.79,7.2569]
[1728569518184,7.2553,137.83,137.78,25.4018]
[1728569518384,19.58147188,137.87,137.77,7.2582]
[1728569518385,23.776884,137.86,137.77,7.2582]
[1728569518582,23.776884,137.86,137.75,18.148]
[1728569518583,7.257,137.8,137.76,7.2589]
[1728569518803,7.2574,137.79,137.75,25.4074]
[1728569519303,7.257,137.8,137.76,7.2588]
[1728569519489,7.2563,137.81,137.77,8.70967896]
[1728569520005,1.44807188,137.83,137.68,107.46233446]
[1728569520299,7.2569,137.8,137.76,7.2588]
[1728569520499,7.257,137.8,137.76,7.2587]
[1728569520888,7.2579,137.78,137.74,18.1494]
[1728569521088,23.776884,137.82,137.74,25.4094]
[1728569521292,7.2575,137.79,137.75,7.2594]
[1728569521993,15.6242,137.81,137.71,18.1532]
[1728569522301,15.6242,137.81,137.71,25.4147]
[1728569522302,7.2596,137.75,137.71,25.4147]
[1728569522887,1.44807188,137.79,137.69,7.2625]
[1728569522888,7.2604,137.74,137.69,7.2625]
[1728569523082,7.2595,137.75,137.7,1.45197018]
[1728569523290,7.2591,137.76,137.71,7.2614]
[1728569523508,7.2591,137.76,137.72,1.45181651]
[1728569524154,1.44807188,137.78,137.72,1.45181651]
[1728569524307,17.07227188,137.81,137.73,1.45181853]
[1728569524513,8.09027188,137.84,137.74,0.25098]
[1728569524685,7.2564,137.81,137.77,7.2582]
[1728569524886,7.2559,137.82,137.78,1.45134261]
[1728569525107,7.2564,137.81,137.78,1.45134261]
[1728569525489,7.2559,137.82,137.78,1.45134261]
[1728569525998,7.2559,137.82,137.77,7.2582]
[1728569526889,7.2559,137.82,137.77,0.25098]
[1728569527095,1.44807188,137.83,137.77,7.50918]
[1728569527299,7.2564,137.81,137.78,1.45117986]
[1728569527602,7.2564,137.81,137.77,7.2583]
[1728569527926,7.2561,137.82,137.78,8.70900041]
[1728569528108,7.2561,137.82,137.78,7.2578]
[1728569528432,7.2574,137.79,137.76,18.1468]
[1728569528604,7.2574,137.79,137.73,6.4978]
[1728569528605,1.44807188,137.82,137.73,18.1508]
[1728569528918,7.2595,137.75,137.71,7.2615]
[1728569529124,23.776884,137.78,137.7,18.1545]
[1728569529339,7.2604,137.74,137.7,18.1545]
[1728569529623,1.44807188,137.77,137.7,18.1545]
[1728569529925,8.70587188,137.79,137.72,18.1523]
[1728569530134,8.70587188,137.79,137.73,1.45176004]
[1728569530633,8.70587188,137.79,137.73,8.71196004]
[1728569530828,1.44807188,137.78,137.75,7.2594]
[1728569531027,69.5896,137.85,137.75,7.2594]
[1728569531028,1.44807188,137.79,137.75,7.2594]
[1728569531328,8.70497188,137.8,137.74,25.4094]
[1728569531534,1.44807188,137.79,137.75,7.2591]
[1728569532027,1.44807188,137.79,137.76,7.2587]
[1728569534419,23.776884,137.82,137.77,1.45165438]
[1728569534603,8.70437188,137.81,137.77,7.2583]
[1728569534933,8.70437188,137.81,137.71,36.3062]
[1728569534934,23.902374,137.8,137.71,36.3062]
[1728569535109,23.902374,137.8,137.74,7.2598]
[1728569535110,7.2579,137.78,137.74,7.2598]
[1728569535426,1.44807188,137.77,137.74,7.2598]
[1728569535930,1.44807188,137.77,137.75,7.2594]
[1728569536127,25.22495588,137.78,137.75,7.2594]
[1728569536428,1.57356188,137.82,137.75,18.1485]
[1728569536612,23.776884,137.8,137.77,7.2583]
[1728569536929,23.776884,137.78,137.72,18.1527]
[1728569537235,23.776884,137.76,137.69,18.1556]
[1728569537533,1.44807188,137.75,137.71,18.1538]
[1728569537739,25.22495588,137.76,137.71,18.1538]
[1728569537916,25.22495588,137.76,137.73,7.2605]
[1728569538118,25.22495588,137.76,137.71,18.1538]
[1728569538119,25.22495588,137.76,137.72,7.2606]
[1728569538428,32.48415588,137.76,137.72,7.2606]
[1728569538814,25.22495588,137.76,137.66,6.531]
[1728569539152,25.22495588,137.76,137.71,7.2612]
[1728569539153,7.2596,137.75,137.71,7.2612]
[1728569539448,1.44807188,137.74,137.67,0.8130491]
[1728569539732,7.2617,137.71,137.67,18.9713491]
[1728569539915,1.44807188,137.7,137.67,26.2347491]
[1728569540117,1.44807188,137.7,137.67,0.8130491]
[1728569540320,7.38869,137.68,137.67,0.8130491]
[1728569540509,23.776884,137.67,137.61,25.4329]
[1728569540715,8.71237188,137.66,137.61,25.4329]
[1728569541323,7.2648,137.65,137.61,25.4329]
[1728569541507,23.776884,137.63,137.59,7.2679]
[1728569541836,41.936184,137.67,137.59,7.2679]
[1728569541837,1.44807188,137.66,137.61,7.2668]
[1728569542006,8.71267188,137.66,137.61,7.2668]
[1728569542209,8.71267188,137.66,137.6,18.1678]
[1728569542210,7.2649,137.65,137.6,25.4351]
[1728569542413,1.44807188,137.64,137.6,25.4351]
[1728569542714,1.44807188,137.66,137.56,1.45332714]
[1728569542925,1.44807188,137.66,137.62,7.2662]
[1728569543733,1.44807188,137.66,137.6,7.2669]
[1728569543734,23.776884,137.65,137.6,7.2669]
[1728569543916,1.44807188,137.64,137.6,7.2669]
[1728569544241,7.38959,137.67,137.59,18.1692]
[1728569544536,1.44807188,137.66,137.58,36.3419]
[1728569544717,1.44807188,137.68,137.63,7.2653]
[1728569544917,7.2649,137.65,137.61,7.2667]
[1728569545115,1.44807188,137.64,137.56,20.0]
[1728569545309,7.2653,137.64,137.59,7.2677]
[1728569545512,1.44807188,137.63,137.57,18.1718]
[1728569545731,1.44807188,137.66,137.57,18.1718]
[1728569545934,24.027864,137.65,137.57,18.1718]
[1728569546141,23.776884,137.62,137.58,7.2681]
[1728569546313,1.44807188,137.61,137.59,7.2678]
[1728569546733,7.2654,137.64,137.59,7.2678]
[1728569546926,1.44807188,137.63,137.6,7.2672]
[1728569547844,1.44807188,137.66,137.62,7.2663]
[1728569548036,1.44807188,137.66,137.61,25.4334]
[1728569548335,1.44807188,137.66,137.62,7.2659]
[1728569548543,1.44807188,137.66,137.63,7.2657]
[1728569549638,1.44807188,137.66,137.61,18.1666]
[1728569549840,8.71287188,137.65,137.61,25.4331]
[1728569550417,8.71287188,137.65,137.61,18.1666]
[1728569550623,8.71287188,137.65,137.61,25.4333]
[1728569551044,1.44807188,137.68,137.63,18.1641]
[1728569551340,23.776884,137.67,137.63,18.1641]
[1728569551524,1.44807188,137.66,137.63,18.1641]
[1728569551724,1.44807188,137.66,137.63,25.4298]
[1728569551934,16.3237,137.72,137.65,7.2648]
[1728569552244,1.44807188,137.68,137.65,18.1613]
[1728569552421,7.89377188,137.69,137.65,18.1613]
[1728569552623,1.44807188,137.7,137.66,1.45274419]
[1728569552818,1.44807188,137.7,137.68,7.263]
[1728569553737,1.44807188,137.71,137.68,7.263]
[1728569554637,1.44807188,137.71,137.54,43.06909541]
[1728569554829,7.2646,137.66,137.54,43.06909541]
[1728569555026,7.2646,137.66,137.61,25.4332]
[1728569555027,1.44807188,137.65,137.61,25.4332]
[1728569555352,7.2662,137.63,137.59,7.2678]
[1728569555521,1.44807188,137.62,137.6,7.2673]
[1728569555845,1.44807188,137.63,137.6,7.2673]
[1728569556428,7.2649,137.65,137.61,7.2665]
[1728569556640,1.44807188,137.64,137.6,18.1683]
[1728569556944,1.44807188,137.64,137.61,7.2668]
[1728569558545,8.71367188,137.64,137.6,25.4355]
[1728569559125,1.44807188,137.64,137.61,7.2668]
[1728569559439,8.71297188,137.65,137.61,8.72003388]
[1728569559645,1.44807188,137.65,137.62,7.2663]
[1728569559840,1.44807188,137.65,137.62,18.1655]
[1728569560032,1.44807188,137.65,137.62,25.4317]
[1728569561228,23.776884,137.68,137.63,1.45313437]
[1728569561431,8.71187188,137.67,137.63,7.2656]
[1728569562040,1.44807188,137.67,137.64,7.2652]
[1728569562433,8.71177188,137.67,137.63,7.2656]
[1728569562629,8.71177188,137.67,137.58,0.12549]
[1728569562630,1.44807188,137.67,137.58,0.12549]
[1728569562833,1.44807188,137.72,137.63,26.60388]
[1728569563038,1.44807188,137.76,137.71,18.1537]
[1728569563344,7.2598,137.75,137.71,18.1537]
[1728569563560,1.44807188,137.74,137.71,18.1537]
[1728569564355,8.70817188,137.74,137.71,18.1537]
[1728569564526,1.44807188,137.74,137.71,18.1537]
[1728569564840,7.2591,137.76,137.72,7.2607]
[1728569565043,1.44807188,137.75,137.72,7.2607]
[1728569565228,7.2586,137.77,137.73,7.2605]
[1728569565434,1.44807188,137.76,137.73,7.2605]
[1728569565634,7.2597,137.75,137.71,25.4148]
[1728569565834,1.44807188,137.74,137.71,25.4148]
[1728569566647,23.776884,137.73,137.68,18.1569]
[1728569566828,8.70937188,137.72,137.68,18.1569]
[1728569567030,8.70937188,137.72,137.68,25.42]
[1728569570328,1.44807188,137.72,137.68,18.1569]
[1728569570550,1.44807188,137.72,137.69,1.45253156]
[1728569570849,7.2591,137.76,137.72,7.261]
[1728569571024,1.44807188,137.75,137.72,7.261]
[1728569571660,7.2582,137.78,137.74,7.26]
[1728569571846,1.44807188,137.78,137.72,19.60420409]
[1728569572047,1.44807188,137.78,137.73,7.2604]
[1728569572048,7.2585,137.77,137.73,7.2604]
[1728569572252,1.44807188,137.76,137.73,7.2604]
[1728569573450,7.2597,137.75,137.72,18.152]
[1728569573751,7.2597,137.75,137.69,15.4058]
[1728569573752,1.44807188,137.74,137.69,18.1555]
[1728569573950,7.2606,137.73,137.69,25.4177]
[1728569574137,1.44807188,137.72,137.69,25.4177]
[1728569574932,1.44807188,137.72,137.7,7.2621]
[1728569575132,1.44807188,137.73,137.7,7.2621]
[1728569579154,1.44807188,137.73,137.71,7.2616]
[1728569579530,1.44807188,137.77,137.72,7.2607]
[1728569579736,31.035984,137.76,137.72,7.2609]
[1728569579935,31.035984,137.76,137.71,18.1535]
[1728569579936,7.26,137.74,137.71,25.415]
[1728569580146,1.44807188,137.73,137.71,25.415]
[1728569580354,1.44807188,137.73,137.68,18.157]
[1728569580543,7.2603,137.74,137.7,7.2621]
[1728569580860,1.44807188,137.73,137.71,7.2615]
[1728569581059,31.038184,137.72,137.68,7.2628]
[1728569581351,1.44807188,137.71,137.69,7.2623]
[1728569581743,25.22495588,137.72,137.69,7.2623]
[1728569582136,1.44807188,137.72,137.7,7.2621]
[1728569582339,23.776884,137.74,137.69,1.45235579]
[1728569582546,1.44807188,137.73,137.71,18.1539]
[1728569582876,7.2585,137.77,137.73,7.2601]
[1728569583044,1.44807188,137.76,137.73,7.2601]
[1728569583365,1.44807188,137.76,137.74,7.26]
[1728569583656,1.44807188,137.77,137.74,7.26]
[1728569584354,8.70657188,137.77,137.73,25.4118]
[1728569584656,7.2593,137.76,137.72,7.261]
[1728569584842,1.44807188,137.75,137.72,7.261]
[1728569586335,1.44807188,137.75,137.67,36.3174]
[1728569586336,23.776884,137.74,137.67,36.3174]
[1728569586555,7.2627,137.69,137.65,7.2645]
[1728569586770,8.71127188,137.68,137.64,18.1623]
[1728569586937,8.71127188,137.68,137.61,6.0571]
[1728569586938,1.44807188,137.68,137.61,6.0571]
[1728569587140,23.776884,137.66,137.61,18.1662]
[1728569587353,1.44807188,137.65,137.61,18.1662]
[1728569587544,8.71327188,137.65,137.61,18.1662]
[1728569587859,1.44807188,137.65,137.61,19.61944782]
[1728569588054,0.12549,137.7,137.63,7.2657]
[1728569588360,1.44807188,137.69,137.64,1.45300051]
[1728569588559,1.44807188,137.69,137.6,23.902374]
[1728569588763,1.44807188,137.69,137.62,0.12549]
[1728569588955,1.44807188,137.69,137.66,7.2641]
[1728569589157,7.2621,137.7,137.65,18.1612]
[1728569589361,25.22495588,137.71,137.65,25.4259]
[1728569589362,1.44807188,137.69,137.65,25.4259]
[1728569589742,1.44807188,137.7,137.67,7.2636]
[1728569589949,1.44807188,137.7,137.66,7.2642]
[1728569590243,1.44807188,137.7,137.66,1.45267834]
[1728569590653,25.22495588,137.71,137.68,7.2631]
[1728569590851,23.776884,137.72,137.69,7.2626]
[1728569591070,25.22495588,137.72,137.69,7.2626]
[1728569591247,1.44807188,137.72,137.69,7.2626]
[1728569592139,7.2601,137.74,137.7,7.262]
[1728569592346,1.44807188,137.73,137.7,7.262]
[1728569592842,1.44807188,137.75,137.72,7.261]
[1728569593165,1.44807188,137.75,137.73,7.2605]
[1728569593551,1.44807188,137.75,137.72,7.2609]
[1728569593869,1.44807188,137.76,137.72,7.2609]
[1728569594858,1.44807188,137.76,137.71,18.1532]